bitfinex/quotes_ETHUSD_20250130
["timestamp","ask_amount","ask_price","bid_price","bid_amount"]
[1738211415582,3.66887,3206.3,3206.2,0.17692544]
[1738211416806,4.43097,3206.3,3206.2,0.17692544]
[1738211417200,4.44597,3206.3,3206.2,0.17692544]
[1738211417530,3.11993,3205.2,3204.8,0.7607]
[1738211418218,3.11973,3205.4,3204.8,3.7607]
[1738211418527,3.11994,3205.2,3204.8,3.7607]
[1738211418830,3.11976,3205.4,3204.8,3.7607]
[1738211419045,3.12002,3205.1,3204.8,3.7607]
[1738211419573,3.12013,3205.0,3204.8,0.7607]
[1738211419828,3.12002,3205.1,3204.8,0.7607]
[1738211420509,3.12042,3204.7,3204.5,0.7777]
[1738211420694,3.12042,3204.7,3204.2,0.7777]
[1738211420895,3.12042,3204.7,3204.2,3.7777]
[1738211421200,3.12028,3204.9,3204.2,6.89859]
[1738211421695,3.12028,3204.9,3204.4,3.0]
[1738211422328,3.12028,3204.9,3204.2,3.7777]
[1738211422641,3.12044,3204.7,3204.2,3.7777]
[1738211425048,3.12044,3204.7,3204.1,0.167639]
[1738211425049,3.12073,3204.4,3204.1,0.167639]
[1738211425346,3.12051,3204.6,3204.1,0.167639]
[1738211428150,3.12075,3204.4,3204.1,0.167639]
[1738211429522,3.1209,3204.2,3204.1,0.167639]
[1738211429747,5.182329,3204.2,3204.1,0.167639]
[1738211429945,5.197329,3204.2,3204.1,0.167639]
[1738211431422,5.83408307,3204.2,3204.1,0.167639]
[1738211432430,3.9275,3204.2,3204.1,0.167639]
[1738211432657,3.12079,3204.4,3204.1,0.167639]
[1738211432864,3.12051,3204.7,3204.1,0.167639]
[1738211432865,3.12058,3204.6,3204.1,0.167639]
[1738211433043,3.12061,3204.5,3204.1,0.167639]
[1738211433861,3.12024,3204.9,3204.2,0.7982]
[1738211434157,3.12015,3205.0,3204.4,3.12067]
[1738211434462,3.12023,3204.9,3204.3,3.12071]
[1738211435370,3.12037,3204.8,3204.2,3.7982]
[1738211435668,3.12037,3204.8,3204.2,6.91908]
[1738211436033,0.55,3204.9,3204.2,3.0]
[1738211436239,0.55,3204.9,3204.2,6.12081]
[1738211437458,0.55,3204.9,3204.2,3.0]
[1738211437637,0.55,3204.9,3204.3,3.12072]
[1738211438755,0.55,3204.9,3204.4,0.7902]
[1738211439562,0.55,3204.9,3204.3,3.12072]
[1738211439563,0.55,3204.9,3204.1,4.085089]
[1738211439742,0.55,3204.4,3204.1,0.167639]
[1738211439924,3.67075,3204.4,3204.1,0.167639]
[1738211440130,0.55,3204.2,3204.1,0.167639]
[1738211441261,3.92819,3204.8,3204.1,0.167639]
[1738211441562,0.55,3204.7,3204.1,0.167639]
[1738211441857,0.55,3204.7,3204.1,3.288629]
[1738211442363,0.55,3204.7,3204.2,3.91644]
[1738211442967,0.55,3204.7,3204.2,3.9165]
[1738211443267,0.55,3204.7,3204.2,0.7956]
[1738211443969,3.12012,3205.0,3204.2,0.7956]
[1738211444131,3.12012,3205.0,3204.4,3.12063]
[1738211444332,3.12012,3205.0,3204.5,3.12058]
[1738211444842,0.8264,3204.8,3204.2,0.7956]
[1738211445046,3.9468,3204.8,3204.2,0.7956]
[1738211445239,3.9468,3204.8,3204.1,6.288559]
[1738211445240,3.67047,3204.7,3204.1,3.288629]
[1738211447837,3.67047,3204.7,3204.2,3.1209]
[1738211448566,0.55,3204.7,3204.2,3.1209]
[1738211449067,3.12005,3205.1,3204.4,3.1207]
[1738211449272,3.11984,3205.3,3204.6,3.12042]
[1738211449477,3.87697,3205.5,3204.8,3.12024]
[1738211449643,3.87697,3205.5,3204.9,0.7762]
[1738211449972,0.55,3205.3,3204.9,0.7762]
[1738211450539,3.87697,3205.5,3204.9,0.7762]
[1738211450540,0.55,3205.4,3204.9,0.7762]
[1738211450770,0.55,3205.4,3204.7,0.7762]
[1738211450971,0.55,3205.2,3204.7,0.7762]
[1738211451749,3.87697,3205.5,3204.7,0.7762]
[1738211451944,6.99669,3205.5,3204.8,3.1203]
[1738211452272,3.66975,3205.4,3204.8,3.1203]
[1738211452451,3.11951,3205.7,3205.0,3.12009]
[1738211452648,3.87667,3205.8,3205.0,3.12009]
[1738211452848,3.11956,3205.6,3205.0,3.12009]
[1738211453461,3.11917,3206.0,3204.7,0.7762]
[1738211453665,3.11917,3206.0,3205.4,3.89586]
[1738211453863,6.23801,3206.2,3205.5,3.11961]
[1738211454068,3.11898,3206.2,3205.6,3.11951]
[1738211454813,3.11912,3206.1,3205.5,3.11961]
[1738211454962,0.55,3206.1,3205.5,3.11961]
[1738211455502,0.55,3205.6,3204.9,3.12021]
[1738211455661,3.66962,3205.6,3204.9,3.12021]
[1738211456000,0.55,3205.6,3205.0,6.1201]
[1738211456587,3.66955,3205.6,3205.0,6.1201]
[1738211456865,3.11942,3205.8,3205.2,0.7762]
[1738211457048,3.11955,3205.6,3205.2,0.7762]
[1738211457244,3.11966,3205.5,3205.2,0.7762]
[1738211457450,3.11973,3205.4,3205.2,0.7762]
[1738211457682,3.11973,3205.4,3204.8,3.0]
[1738211457683,3.11973,3205.4,3204.9,0.8266]
[1738211459682,0.55,3205.3,3204.8,3.0]
[1738211459883,3.11973,3205.4,3204.3,3.94735]
[1738211459884,3.12018,3205.0,3204.3,3.94735]
[1738211460064,3.91368,3205.0,3204.4,3.12068]
[1738211460262,0.55,3204.9,3204.3,6.94739]
[1738211460468,3.12032,3204.8,3204.3,6.94739]
[1738211460653,3.12032,3204.8,3204.3,3.94739]
[1738211461588,0.55,3204.7,3204.1,0.994239]
[1738211461884,3.1206,3204.6,3204.1,0.994239]
[1738211462088,0.55,3204.7,3204.1,4.115179]
[1738211462089,3.67042,3204.7,3204.1,4.115179]
[1738211462291,3.12052,3204.6,3204.1,4.115179]
[1738211463750,0.55,3204.7,3204.1,4.115179]
[1738211463982,0.55,3204.7,3204.1,0.994239]
[1738211464187,0.55,3204.7,3204.2,3.12088]
[1738211464999,3.12078,3204.4,3204.1,0.167639]
[1738211465206,3.1209,3204.2,3204.1,0.167639]
[1738211465772,3.6709,3204.2,3204.1,0.167639]
[1738211467726,4.4812,3204.2,3204.1,0.167639]
[1738211468008,4.4962,3204.2,3204.1,0.167639]
[1738211468302,5.242901,3204.2,3204.1,0.167639]
[1738211469168,5.257901,3204.2,3204.1,0.167639]
[1738211476436,8.257901,3204.2,3204.1,0.167639]
[1738211479056,8.257901,3204.2,3204.1,9e-06]
[1738211479267,3.67207,3203.0,3202.9,0.31088106]
[1738211479467,4.428293,3203.0,3202.9,0.31088106]
[1738211479810,4.443293,3203.0,3202.9,0.31088106]
[1738211480356,4.428293,3203.0,3202.9,0.31088106]
[1738211480591,3.67207,3203.0,3202.9,0.31088106]
[1738211481777,4.44017,3203.0,3202.9,0.31088106]
[1738211482455,3.67285,3202.2,3202.1,0.8043]
[1738211482908,3.12265,3202.5,3202.1,0.8043]
[1738211483110,3.12223,3202.9,3202.3,3.12269]
[1738211483312,3.12227,3202.8,3202.2,0.7649]
[1738211483815,3.12227,3202.8,3202.2,3.88771]
[1738211484380,3.12227,3202.8,3202.2,0.7649]
[1738211484713,0.55,3202.6,3202.2,0.7649]
[1738211485011,3.12258,3202.5,3202.2,0.7649]
[1738211485375,1.455736,3202.8,3202.1,0.005]
[1738211485580,3.12285,3202.2,3202.1,0.005]
[1738211486116,0.55,3202.3,3202.1,0.005]
[1738211486463,3.67277,3202.3,3202.1,0.005]
[1738211487333,3.12285,3202.2,3202.1,0.005]
[1738211489849,4.297401,3202.2,3202.1,0.005]
[1738211490061,3.747401,3202.2,3202.1,0.005]
[1738211491531,3.12266,3202.4,3202.1,0.005]
[1738211492100,3.67285,3202.2,3202.1,0.005]
[1738211492306,4.49685,3202.2,3202.1,0.005]
[1738211492917,4.51185,3202.2,3202.1,0.005]
[1738211494218,7.79285,3202.2,3202.1,0.005]
[1738211494423,3.12408,3201.0,3200.8,0.167639]
[1738211494933,3.12341,3201.7,3201.0,3.12395]
[1738211495134,3.12341,3201.7,3201.0,3.88885]
[1738211495337,3.12344,3201.6,3201.0,3.88885]
[1738211496026,3.12362,3201.5,3201.0,0.7649]
[1738211496528,3.12357,3201.5,3201.0,0.7649]
[1738211496931,3.67304,3202.0,3201.0,0.7649]
[1738211497131,3.12378,3201.3,3201.0,0.7649]
[1738211497313,3.12365,3201.4,3201.0,0.7649]
[1738211497810,3.12374,3201.3,3201.0,0.7649]
[1738211498211,0.55,3201.2,3200.8,0.167639]
[1738211498411,0.312374,3201.2,3200.8,3.291849]
[1738211498625,3.12333,3201.8,3200.9,0.7649]
[1738211498824,3.12333,3201.8,3201.0,3.12399]
[1738211498825,3.12345,3201.6,3201.0,3.12399]
[1738211499402,6.24698,3201.6,3201.0,3.12399]
[1738211499935,3.12353,3201.5,3201.0,3.12399]
[1738211500099,3.12353,3201.5,3200.9,0.7649]
[1738211500304,3.748228,3201.5,3200.9,0.7649]
[1738211500505,3.12371,3201.4,3200.9,0.7649]
[1738211500736,0.624698,3201.5,3200.9,0.7649]
[1738211500933,3.12376,3201.3,3200.9,0.7649]
[1738211502629,3.12341,3201.7,3201.1,3.12391]
[1738211502817,3.12341,3201.7,3201.2,0.7867]
[1738211503217,0.55,3201.8,3201.2,0.7867]
[1738211503543,3.12341,3201.7,3201.2,0.7867]
[1738211504123,3.12308,3202.0,3201.3,3.12363]
[1738211504308,3.12308,3202.0,3201.5,0.7833]
[1738211505004,3.95008,3202.2,3201.6,3.12343]
[1738211505005,0.55,3202.1,3201.6,3.12343]
[1738211505226,3.67296,3202.1,3201.5,0.7833]
[1738211506228,3.12313,3202.0,3201.5,0.7833]
[1738211507743,6.24582,3202.2,3201.5,3.9068]
[1738211508044,3.12288,3202.2,3201.6,0.28656043]
[1738211508210,3.12288,3202.2,3201.6,0.51579575]
[1738211508944,3.12288,3202.2,3201.7,0.28656043]
[1738211509536,6.24582,3202.2,3201.7,0.28656043]
[1738211509844,3.12301,3202.1,3201.7,0.28656043]
[1738211510009,3.12301,3202.1,3201.5,4.7313382]
[1738211511543,3.12301,3202.1,3201.5,4.36473937]
[1738211511744,3.12301,3202.1,3201.6,0.28663858]
[1738211512445,3.93116,3201.9,3201.6,0.28663858]
[1738211512615,3.12334,3201.7,3201.4,0.45793937]
[1738211512943,3.12326,3201.8,3201.4,0.45793937]
[1738211513152,3.12326,3201.8,3201.4,0.8245382]
[1738211513545,3.12335,3201.7,3201.4,0.8245382]
[1738211513941,3.12335,3201.7,3201.4,0.36659883]
[1738211514341,3.12335,3201.7,3201.2,3.7885]
[1738211514543,3.12355,3201.5,3201.2,0.7885]
[1738211514929,3.12335,3201.7,3201.2,0.7885]
[1738211515156,3.12353,3201.5,3201.2,0.7885]
[1738211515954,3.12363,3201.4,3201.2,0.7885]
[1738211516764,3.12392,3201.1,3201.0,0.36718171]
[1738211517066,3.12402,3201.0,3200.9,0.8261324]
[1738211517297,3.59681839,3201.0,3200.9,0.8261324]
[1738211518144,3.59681839,3201.0,3200.9,0.36718171]
[1738211518465,3.59681839,3201.0,3200.8,0.167639]
[1738211518669,3.12412,3200.9,3200.8,0.167639]
[1738211518868,3.67412,3200.9,3200.8,0.167639]
[1738211519073,4.40121384,3200.9,3200.8,0.167639]
[1738211519432,5.17121384,3200.9,3200.8,0.167639]
[1738211520050,3.85121384,3200.9,3200.8,0.167639]
[1738211520449,4.40121384,3200.9,3200.8,0.167639]
[1738211521135,5.21381384,3200.9,3200.8,0.167639]
[1738211521637,5.19881384,3200.9,3200.8,0.167639]
[1738211522262,3.12412,3200.9,3200.8,0.167639]
[1738211522463,3.12386,3201.2,3200.9,0.7758]
[1738211522663,3.12365,3201.4,3200.9,0.7758]
[1738211522838,3.12383,3201.2,3200.9,0.7758]
[1738211523045,3.12401,3201.1,3200.9,0.7758]
[1738211523275,3.12383,3201.2,3200.9,0.7758]
[1738211523477,3.12402,3201.0,3200.9,0.7758]
[1738211523681,3.12402,3201.0,3200.8,0.167639]
[1738211524245,3.12412,3200.9,3200.8,0.167639]
[1738211525543,3.67412,3200.9,3200.8,0.167639]
[1738211526784,3.12412,3200.9,3200.8,0.167639]
[1738211527984,3.12412,3200.9,3200.8,0.986839]
[1738211529189,3.12412,3200.9,3200.8,0.167639]
[1738211529854,4.298933,3200.9,3200.8,0.167639]
[1738211530259,3.748933,3200.9,3200.8,0.167639]
[1738211530460,3.12412,3200.9,3200.8,0.167639]
[1738211531777,3.67412,3200.9,3200.8,0.167639]
[1738211532989,3.12412,3200.9,3200.8,0.067639]
[1738211533371,3.67412,3200.9,3200.8,0.067639]
[1738211533960,3.12412,3200.9,3200.8,0.067639]
[1738211534685,3.12412,3200.9,3200.8,0.877239]
[1738211536381,3.12412,3200.9,3200.8,0.067639]
[1738211537181,3.12377,3201.3,3200.8,0.067639]
[1738211537383,3.12394,3201.1,3200.8,0.067639]
[1738211537967,3.12405,3201.0,3200.8,0.067639]
[1738211538157,3.12394,3201.1,3200.8,0.067639]
[1738211538360,3.12408,3201.0,3200.8,0.067639]
[1738211538562,3.12412,3200.9,3200.8,0.067639]
[1738211543605,3.67412,3200.9,3200.8,0.067639]
[1738211544379,3.12412,3200.9,3200.8,0.067639]
[1738211544575,0.624768,3201.1,3200.8,0.067639]
[1738211544891,3.12409,3201.0,3200.8,0.067639]
[1738211545285,3.12412,3200.9,3200.8,0.067639]
[1738211546564,3.4989758,3201.0,3200.8,0.067639]
[1738211546768,3.12409,3201.0,3200.8,0.886539]
[1738211547096,6.2482,3201.0,3200.8,0.886539]
[1738211547664,3.12409,3201.0,3200.8,0.886539]
[1738211547869,3.12412,3200.9,3200.8,0.886539]
[1738211549169,3.12412,3200.9,3200.8,1.11694591]
[1738211552607,3.12412,3200.9,3200.8,0.29804591]
[1738211552788,3.748929,3200.9,3200.8,0.29804591]
[1738211554424,3.12412,3200.9,3200.8,0.067639]
[1738211555331,3.12404,3201.0,3200.8,0.067639]
[1738211556022,3.12397,3201.1,3200.8,0.067639]
[1738211556188,3.12412,3200.9,3200.8,0.067639]
[1738211557730,3.12412,3200.9,3200.8,0.29857091]
[1738211557913,3.12358,3201.5,3200.9,0.7745]
[1738211557914,3.1236,3201.5,3200.9,0.7745]
[1738211558113,3.12336,3201.7,3200.9,3.89854]
[1738211558313,3.12349,3201.6,3201.0,3.12396]
[1738211558493,3.12349,3201.6,3201.1,0.7745]
[1738211558697,3.1236,3201.5,3201.1,0.7745]
[1738211559508,3.12392,3201.1,3201.0,0.28852336]
[1738211561119,3.12392,3201.1,3200.9,0.7655]
[1738211561310,3.12392,3201.1,3201.0,0.23072292]
[1738211562381,3.12385,3201.2,3201.0,0.23072292]
[1738211562537,0.7908,3201.5,3201.0,0.23072292]
[1738211562758,3.1236,3201.5,3201.0,3.35473292]
[1738211563957,6.24666,3201.8,3201.2,0.792]
[1738211564306,3.12333,3201.8,3201.2,3.91582]
[1738211564507,3.12334,3201.7,3201.2,3.91582]
[1738211564732,3.12333,3201.8,3201.2,3.91582]
[1738211565516,3.12308,3202.0,3201.3,0.23072292]
[1738211565719,3.12308,3202.0,3201.4,3.91562]
[1738211567140,3.12308,3202.0,3201.5,0.23072292]
[1738211567644,3.12308,3202.0,3201.5,0.51852294]
[1738211568314,3.12308,3202.0,3201.6,0.23072292]
[1738211568907,3.747676,3202.0,3201.6,0.23072292]
[1738211569745,3.12308,3202.0,3201.6,0.23072292]
[1738211569928,3.12308,3202.0,3201.7,0.8253]
[1738211571510,3.12288,3202.2,3201.7,0.8253]
[1738211571734,3.12288,3202.2,3201.7,3.94861]
[1738211572747,3.1227,3202.4,3201.7,3.94861]
[1738211573246,3.12249,3202.6,3202.1,3.12292]
[1738211573948,3.12209,3203.0,3202.3,3.88352]
[1738211574151,3.12209,3203.0,3202.5,0.7608]
[1738211574449,3.434299,3203.0,3202.5,0.7608]
[1738211575109,3.12192,3203.2,3202.5,0.7608]
[1738211575315,3.12158,3203.5,3202.8,0.7703]
[1738211575646,3.12177,3203.4,3202.8,0.7703]
[1738211575948,3.12158,3203.5,3202.8,0.7703]
[1738211576152,3.12181,3203.3,3202.8,0.7703]
[1738211576716,3.12198,3203.1,3202.8,0.7703]
[1738211576913,3.12213,3203.0,3202.8,0.7703]
[1738211577314,3.12194,3203.2,3202.8,0.7703]
[1738211577715,3.12181,3203.3,3202.8,0.7703]
[1738211578122,3.12198,3203.1,3202.8,0.7703]
[1738211578413,3.746359,3203.1,3202.8,0.7703]
[1738211578640,3.12217,3202.9,3202.8,0.7703]
[1738211578949,3.12217,3202.9,3202.4,0.7592]
[1738211581019,3.12207,3203.0,3202.4,0.7592]
[1738211581238,3.12256,3202.5,3202.0,0.7841]
[1738211581756,3.12276,3202.3,3202.0,0.7841]
[1738211582057,3.12256,3202.5,3202.0,0.7841]
[1738211582253,0.8077,3203.1,3202.0,0.7841]
[1738211582254,3.12239,3202.7,3202.1,3.12289]
[1738211582616,3.12202,3203.1,3202.5,3.12253]
[1738211582951,3.12171,3203.4,3202.7,3.90649]
[1738211583153,3.12171,3203.4,3202.7,7.02878]
[1738211583751,3.12136,3203.8,3203.2,0.7842]
[1738211583918,3.12184,3203.3,3202.8,0.793]
[1738211584254,3.12188,3203.2,3202.8,0.793]
[1738211584650,3.12213,3203.0,3202.8,0.793]
[1738211584890,0.7791,3203.5,3202.8,0.793]
[1738211585043,3.12186,3203.3,3202.8,0.793]
[1738211585938,3.12188,3203.2,3202.8,0.793]
[1738211586622,3.90074,3203.5,3202.8,3.91518]
[1738211587158,0.55,3203.4,3202.8,0.793]
[1738211587455,3.12197,3203.1,3202.8,0.793]
[1738211588348,3.12213,3203.0,3202.8,0.793]
[1738211589654,3.12213,3203.0,3202.5,0.7597]
[1738211589655,3.12217,3202.9,3202.5,0.7597]
[1738211590035,3.12232,3202.8,3202.5,0.7597]
[1738211590271,3.12244,3202.7,3202.2,0.8009]
[1738211590459,3.12273,3202.4,3201.7,3.12325]
[1738211590651,3.12275,3202.3,3201.8,0.8009]
[1738211591170,3.12275,3202.3,3201.8,3.8009]
[1738211591373,3.12289,3202.2,3201.8,0.8009]
[1738211591739,3.12275,3202.3,3201.8,0.8009]
[1738211592057,3.12295,3202.1,3201.8,0.8009]
[1738211592403,3.1232,3201.9,3201.5,0.8132]
[1738211592937,3.12295,3202.1,3201.5,3.93672]
[1738211594952,3.12277,3202.3,3201.8,3.12323]
[1738211595468,3.12301,3202.1,3201.6,0.22976249]
[1738211595674,3.12312,3202.0,3201.6,0.22976249]
[1738211596172,0.391267,3202.3,3201.6,0.22976249]
[1738211596377,3.12298,3202.1,3201.6,0.22976249]
[1738211596679,3.12306,3202.0,3201.6,0.22976249]
[1738211596980,3.12298,3202.1,3201.6,0.22976249]
[1738211597452,3.12308,3202.0,3201.6,0.22976249]
[1738211597768,3.12308,3202.0,3201.5,0.8132]
[1738211597987,3.12291,3202.2,3201.5,3.93672]
[1738211598142,3.12291,3202.2,3201.6,3.12341]
[1738211598839,0.7899,3202.5,3201.8,3.12324]
[1738211598840,3.12267,3202.4,3201.8,3.12324]
[1738211599154,3.12217,3202.9,3202.4,3.12265]
[1738211599949,0.8258,3203.4,3202.4,0.7651]
[1738211600166,1.46232982,3203.4,3202.4,0.7651]
[1738211600353,3.12232,3202.8,3202.2,3.12282]
[1738211600973,3.12265,3202.4,3202.1,0.7651]
[1738211601172,3.12281,3202.3,3201.8,0.7651]
[1738211601473,3.12324,3201.8,3201.7,0.22982231]
[1738211602262,3.67324,3201.8,3201.7,0.22982231]
[1738211602466,4.43154,3201.8,3201.7,0.22982231]
[1738211602860,3.12321,3201.9,3201.7,0.22982231]
[1738211603266,3.985561,3201.8,3201.7,0.22982231]
[1738211603579,3.12353,3201.5,3201.4,0.77999318]
[1738211604484,3.12342,3201.7,3201.4,0.30408563]
[1738211604677,3.12315,3201.9,3201.4,0.30408563]
[1738211604878,3.1233,3201.8,3201.4,0.30408563]
[1738211605176,1.174645,3201.8,3201.4,0.30408563]
[1738211605381,3.12353,3201.5,3201.4,0.30408563]
[1738211605581,3.12366,3201.4,3200.9,1.1422753]
[1738211606077,3.12393,3201.1,3200.9,0.3110753]
[1738211606244,3.12381,3201.3,3200.9,0.3110753]
[1738211606449,0.55,3201.5,3200.9,0.3110753]
[1738211606755,0.55,3201.8,3200.9,0.3110753]
[1738211606756,3.12327,3201.8,3201.1,3.12386]
[1738211606959,0.8253,3202.0,3201.0,0.7885]
[1738211606960,3.1236,3201.5,3201.0,0.7885]
[1738211607651,3.12374,3201.3,3201.0,0.7885]
[1738211608066,3.12365,3201.4,3201.0,0.5385]
[1738211608253,0.312365,3201.3,3201.0,0.5385]
[1738211608448,3.12365,3201.4,3201.0,0.5385]
[1738211608654,3.12365,3201.4,3200.9,0.3110753]
[1738211609252,0.7884,3201.8,3200.9,0.3110753]
[1738211609586,3.12365,3201.4,3200.9,0.3110753]
[1738211610154,3.91165,3201.8,3201.1,3.12385]
[1738211610493,3.12325,3201.8,3201.1,3.12385]
[1738211611198,3.12325,3201.8,3201.2,0.8309]
[1738211612082,3.12335,3201.7,3201.2,0.8309]
[1738211615160,3.12345,3201.6,3201.2,0.8309]
[1738211616087,3.12386,3201.2,3200.9,1.0778753]
[1738211617068,3.12402,3201.0,3200.9,0.3110753]
[1738211617593,3.12386,3201.2,3200.9,0.3110753]
[1738211618090,3.12345,3201.6,3201.0,0.799]
[1738211618654,3.12345,3201.6,3201.0,3.92296]
[1738211619954,3.12358,3201.5,3201.0,0.799]
[1738211620196,3.12368,3201.4,3201.0,0.799]
[1738211620492,3.12368,3201.4,3200.8,0.067639]
[1738211620693,3.12412,3200.9,3200.8,0.067639]
[1738211620897,3.748933,3200.9,3200.8,0.067639]
[1738211621093,3.12401,3201.1,3200.8,0.067639]
[1738211621301,6.24755,3201.3,3200.8,0.067639]
[1738211621598,3.12385,3201.2,3200.8,0.067639]
[1738211622862,3.12387,3201.2,3200.8,0.067639]
[1738211623182,3.12375,3201.3,3200.8,0.067639]
[1738211623388,3.12393,3201.1,3200.8,0.067639]
[1738211623961,3.515485,3201.3,3200.8,0.067639]
[1738211624794,3.12389,3201.2,3200.8,0.067639]
[1738211625302,3.12389,3201.2,3200.8,0.29778358]
[1738211626904,3.515485,3201.3,3200.8,0.29778358]
[1738211626905,3.124,3201.1,3200.8,0.29778358]
[1738211627203,3.12412,3200.9,3200.8,0.067639]
[1738211629008,3.124,3201.1,3200.8,0.067639]
[1738211629215,3.0,3201.0,3200.8,0.067639]
[1738211629413,7.48512,3200.9,3200.8,0.067639]
[1738211629720,9.158433,3200.9,3200.8,0.067639]
[1738211630213,6.92012,3200.9,3200.8,0.067639]
[1738211630777,6.12412,3200.9,3200.8,0.067639]
[1738211631236,3.12412,3200.9,3200.8,0.067639]
[1738211634014,4.48342,3200.9,3200.8,0.067639]
[1738211644435,7.48342,3200.9,3200.8,9e-06]
[1738211644606,8.844162,3200.9,3200.8,9e-06]
[1738211646427,3.12584,3199.2,3199.0,0.8064]
[1738211646605,3.12597,3199.0,3198.9,0.3684163]
[1738211646803,3.12597,3199.0,3198.7,0.8064]
[1738211647120,3.69136,3198.6,3198.5,0.3684163]
[1738211647324,3.12625,3198.8,3198.5,0.3684163]
[1738211647695,3.126,3199.0,3198.6,0.7924]
[1738211648431,3.12607,3198.9,3198.6,0.7924]
[1738211648627,3.1259,3199.1,3198.6,0.7924]
[1738211648834,3.12571,3199.3,3198.6,3.91867]
[1738211649452,3.12571,3199.3,3198.7,3.12619]
[1738211650243,3.12558,3199.4,3198.8,0.7977]
[1738211650425,0.7672,3199.2,3198.5,6.25283]
[1738211650626,0.55,3199.1,3197.9,0.7977]
[1738211650827,3.12649,3198.5,3197.9,0.7977]
[1738211651025,3.12673,3198.3,3197.9,0.96117596]
[1738211651545,3.12673,3198.3,3197.9,0.7977]
[1738211651747,3.12677,3198.2,3197.9,0.7977]
[1738211651950,3.12673,3198.3,3197.9,0.7977]
[1738211652646,3.12647,3198.5,3197.9,0.7977]
[1738211653247,3.12647,3198.5,3197.9,3.7977]
[1738211653615,3.12647,3198.5,3197.9,0.7977]
[1738211654316,3.12659,3198.4,3197.9,0.7977]
[1738211654519,3.12629,3198.7,3197.9,0.7977]
[1738211654718,3.12629,3198.7,3197.9,3.91076]
[1738211655015,3.12629,3198.7,3198.2,0.7838]
[1738211655241,3.12639,3198.6,3198.2,0.7838]
[1738211655518,3.12629,3198.7,3198.2,0.7838]
[1738211656222,3.12637,3198.6,3198.2,0.7838]
[1738211657026,3.12647,3198.5,3198.2,0.7838]
[1738211659246,3.12666,3198.3,3198.2,0.7838]
[1738211661979,3.12677,3198.2,3197.9,0.7799]
[1738211662532,3.12677,3198.2,3197.8,0.05]
[1738211662533,3.12705,3197.9,3197.8,0.05]
[1738211662738,6.2538,3198.1,3197.2,3.12765]
[1738211663066,3.12702,3198.0,3197.7,0.7799]
[1738211663231,3.12707,3197.9,3197.7,0.7799]
[1738211663427,3.12724,3197.7,3197.3,0.7799]
[1738211665809,3.12707,3197.9,3197.3,0.7799]
[1738211666018,3.12688,3198.1,3197.3,0.7799]
[1738211666160,3.12688,3198.1,3197.4,3.12747]
[1738211666361,3.12688,3198.1,3197.5,3.12742]
[1738211666589,3.12688,3198.1,3197.4,3.12747]
[1738211666772,3.12704,3198.0,3197.4,3.12747]
[1738211666995,3.12713,3197.9,3197.3,3.90752]
[1738211667716,0.55,3197.8,3197.3,0.7799]
[1738211667868,3.12724,3197.7,3197.3,0.7799]
[1738211668973,3.439843,3197.9,3197.3,0.7799]
[1738211669210,3.12713,3197.9,3197.3,3.9075]
[1738211669605,3.12713,3197.9,3197.3,7.03504]
[1738211669924,3.12713,3197.9,3197.3,3.90744]
[1738211670564,3.12713,3197.9,3197.4,0.23029478]
[1738211670763,3.12686,3198.1,3197.4,0.23029478]
[1738211670967,3.12686,3198.1,3197.4,3.35776478]
[1738211671386,3.12696,3198.0,3197.4,0.23029478]
[1738211671600,3.12696,3198.0,3197.5,0.23029478]
[1738211672194,3.12686,3198.1,3197.5,0.23029478]
[1738211672403,3.12712,3197.9,3197.5,0.23029478]
[1738211673425,3.12712,3197.9,3197.4,0.23029478]
[1738211674122,3.12724,3197.7,3197.4,0.23029478]
[1738211674327,3.12719,3197.8,3197.6,0.934539]
[1738211674620,3.12699,3198.0,3197.6,0.934539]
[1738211674823,6.25403,3198.0,3197.6,0.934539]
[1738211675043,3.12699,3198.0,3197.6,0.934539]
[1738211675391,3.12705,3197.9,3197.6,0.934539]
[1738211675892,3.12691,3198.1,3197.6,0.934539]
[1738211676213,3.12698,3198.0,3197.6,0.934539]
[1738211676694,3.12705,3197.9,3197.6,0.934539]
[1738211676895,0.565,3198.4,3197.7,0.23113727]
[1738211677113,3.12724,3197.8,3197.7,0.23113727]
[1738211678404,3.12724,3197.8,3197.6,0.167639]
[1738211678609,3.12724,3197.7,3197.6,0.167639]
[1738211681500,4.46204,3197.7,3197.6,0.167639]
[1738211681801,7.46204,3197.7,3197.6,0.167639]
[1738211682000,8.528468,3197.7,3197.6,0.167639]
[1738211688325,4.186168,3197.7,3197.6,0.167639]
[1738211688531,3.12724,3197.7,3197.6,0.167639]
[1738211689359,3.67724,3197.7,3197.6,0.167639]
[1738211689551,4.45254,3197.7,3197.6,0.167639]
[1738211697974,3.90254,3197.7,3197.6,0.167639]
[1738211698177,3.12724,3197.7,3197.6,0.167639]
[1738211702994,3.12705,3197.9,3197.6,0.167639]
[1738211704208,3.12705,3197.9,3197.7,0.787]
[1738211704421,3.1269,3198.1,3197.7,0.787]
[1738211704764,3.12709,3197.9,3197.7,0.787]
[1738211706666,3.1269,3198.1,3197.7,0.787]
[1738211707365,0.8273,3199.6,3198.1,3.12676]
[1738211707565,3.12619,3198.8,3198.2,3.89113]
[1738211707807,0.63932912,3199.3,3197.8,0.7644]
[1738211708097,3.12619,3198.8,3198.4,0.8165]
[1738211708303,3.12604,3199.0,3198.4,0.8165]